[Event "Late-Titled-Tuesday-Blitz-February-13-2024"]
[Site "Chess.com"]
[Date "2024.02.13"]
[Round "3"]
[White "UK_23"]
[Black "lluiss"]
[Result "1/2-1/2"]
[WhiteElo "2363"]
[BlackElo "2147"]
[TimeControl "180+1"]
[EndTime "14:28:32 PST"]
[Termination "Game drawn by agreement"]

1. e4 {[%clk 0:02:59.9]} 1... e6 {[%clk 0:02:36.2]} 2. d4 {[%clk 0:02:57.3]}
2... d5 {[%clk 0:02:35.1]} 3. e5 {[%clk 0:02:57.5]} 3... c5 {[%clk 0:02:32.8]}
4. c3 {[%clk 0:02:57.7]} 4... Ne7 {[%clk 0:02:31.8]} 5. Na3 {[%clk 0:02:54.3]}
5... Nec6 {[%clk 0:02:31.4]} 6. Nc2 {[%clk 0:02:52.3]} 6... b6 {[%clk
0:02:29.4]} 7. f4 {[%clk 0:02:51.5]} 7... Ba6 {[%clk 0:02:27.9]} 8. Bxa6 {[%clk
0:02:49]} 8... Nxa6 {[%clk 0:02:28.8]} 9. a3 {[%clk 0:02:49.3]} 9... c4 {[%clk
0:02:27.4]} 10. Nf3 {[%clk 0:02:44.7]} 10... Na5 {[%clk 0:02:27]} 11. Rb1 {[%clk
0:02:42.1]} 11... Nb3 {[%clk 0:02:26.9]} 12. Be3 {[%clk 0:02:42.3]} 12... Be7
{[%clk 0:02:24.9]} 13. O-O {[%clk 0:02:42.1]} 13... g6 {[%clk 0:02:23.4]} 14.
Bf2 {[%clk 0:02:41.8]} 14... h5 {[%clk 0:02:22.2]} 15. Qe1 {[%clk 0:02:40.4]}
15... h4 {[%clk 0:02:17.7]} 16. Ne3 {[%clk 0:02:38.3]} 16... Nc7 {[%clk
0:02:13.8]} 17. Ng4 {[%clk 0:02:35.8]} 17... h3 {[%clk 0:01:58.2]} 18. g3 {[%clk
0:02:33.9]} 18... Kf8 {[%clk 0:01:48.7]} 19. Be3 {[%clk 0:02:31.8]} 19... Kg7
{[%clk 0:01:48.2]} 20. Ng5 {[%clk 0:02:30.5]} 20... Qd7 {[%clk 0:01:29.9]} 21.
Rf3 {[%clk 0:02:23.1]} 21... b5 {[%clk 0:01:28]} 22. Nf2 {[%clk 0:02:23.2]}
22... a5 {[%clk 0:01:25.6]} 23. Nfxh3 {[%clk 0:02:22.2]} 23... b4 {[%clk
0:01:24.9]} 24. axb4 {[%clk 0:02:22.6]} 24... axb4 {[%clk 0:01:24.6]} 25. Nf2
{[%clk 0:02:14.4]} 25... Nb5 {[%clk 0:01:23.8]} 26. h4 {[%clk 0:02:11.1]} 26...
bxc3 {[%clk 0:01:12.3]} 27. bxc3 {[%clk 0:02:12]} 27... Na3 {[%clk 0:01:12.6]}
28. Rb2 {[%clk 0:02:09.2]} 28... Nb5 {[%clk 0:01:03.8]} 29. Rb1 {[%clk
0:02:03.1]} 29... Na3 {[%clk 0:01:03.2]} 30. Rb2 {[%clk 0:01:58.7]} 30... Nb5
{[%clk 0:01:03.2]} 31. Nd1 {[%clk 0:01:52.5]} 31... Ba3 {[%clk 0:01:00.5]} 32.
Ra2 {[%clk 0:01:50]} 32... Be7 {[%clk 0:00:57.1]} 33. Rff2 {[%clk 0:01:48.4]}
33... Qb7 {[%clk 0:00:41.5]} 34. Rfb2 {[%clk 0:01:38.7]} 34... Rxa2 {[%clk
0:00:39.8]} 35. Rxa2 {[%clk 0:01:38.5]} 35... Ra8 {[%clk 0:00:40.3]} 36. Qe2
{[%clk 0:01:36.1]} 36... Rxa2 {[%clk 0:00:27.1]} 37. Qxa2 {[%clk 0:01:37]} 37...
Qa7 {[%clk 0:00:27.2]} 38. Qxa7 {[%clk 0:01:35.9]} 38... Nxa7 {[%clk 0:00:28.1]}
39. Kg2 {[%clk 0:01:34.6]} 39... Bxg5 {[%clk 0:00:28]} 40. fxg5 {[%clk
0:01:32.6]} 40... Nb5 {[%clk 0:00:27.4]} 41. g4 {[%clk 0:01:31]} 41... Na1
{[%clk 0:00:26.7]} 42. h5 {[%clk 0:01:24.9]} 42... Nc2 {[%clk 0:00:26.5]} 43.
Bd2 {[%clk 0:01:19.3]} 43... Nba3 {[%clk 0:00:26]} 44. Kf3 {[%clk 0:01:16]}
44... Nb1 {[%clk 0:00:25.8]} 45. Bc1 {[%clk 0:01:13.9]} 45... Ne1+ {[%clk
0:00:24]} 46. Ke2 {[%clk 0:01:13.6]} 46... Nd3 {[%clk 0:00:24.6]} 47. Be3 {[%clk
0:01:08.9]} 47... Na3 {[%clk 0:00:22.8]} 48. Kd2 {[%clk 0:01:06.5]} 48... Nb5
{[%clk 0:00:21.9]} 49. Kc2 {[%clk 0:01:05.9]} 49... Na3+ {[%clk 0:00:19.4]} 50.
Kd2 {[%clk 0:01:05.6]} 50... Nb5 {[%clk 0:00:19.8]} 51. Nf2 {[%clk 0:01:03.4]}
51... Nxf2 {[%clk 0:00:17.2]} 52. Bxf2 {[%clk 0:01:04.3]} 52... Na3 {[%clk
0:00:14]} 53. Kc1 {[%clk 0:01:02.2]} 53... Nb5 {[%clk 0:00:14.1]} 54. Be1 {[%clk
0:01:02.7]} 54... Kh7 {[%clk 0:00:13.8]} 55. Kb2 {[%clk 0:01:02.7]} 55... Kg7
{[%clk 0:00:13.7]} 56. Ka2 {[%clk 0:01:02.9]} 56... Kh7 {[%clk 0:00:13.9]} 57.
Kb2 {[%clk 0:00:56.5]} 57... Kg8 {[%clk 0:00:13.9]} 58. Kc2 {[%clk 0:00:57.1]}
58... Kh7 {[%clk 0:00:14.1]} 59. Bd2 {[%clk 0:00:57.7]} 59... Kg8 {[%clk
0:00:14.3]} 60. Bc1 {[%clk 0:00:58.4]} 60... Kh7 {[%clk 0:00:14.3]} 61. Bb2
{[%clk 0:00:58.9]} 61... Kg8 {[%clk 0:00:14.4]} 62. Kb1 {[%clk 0:00:59.4]} 62...
Kh7 {[%clk 0:00:14.7]} 63. Kc1 {[%clk 0:00:58]} 63... Kg8 {[%clk 0:00:15.2]} 64.
Kd2 {[%clk 0:00:58.7]} 64... Kh7 {[%clk 0:00:15.3]} 65. Ke3 {[%clk 0:00:59.4]}
65... Kg8 {[%clk 0:00:15.5]} 66. Kf4 {[%clk 0:01:00.1]} 66... Kh7 {[%clk
0:00:15.8]} 67. Kg3 {[%clk 0:00:59.6]} 67... Kg8 {[%clk 0:00:16]} 68. h6 {[%clk
0:00:59.9]} 68... Kh7 {[%clk 0:00:16.1]} 69. Kf4 {[%clk 0:01:00.4]} 69... Kg8
{[%clk 0:00:16.2]} 70. Ke3 {[%clk 0:01:00.9]} 70... Kh7 {[%clk 0:00:16.4]} 71.
Kd2 {[%clk 0:01:01.3]} 71... Kg8 {[%clk 0:00:16.7]} 72. Kc2 {[%clk 0:01:01.9]}
72... Kh7 {[%clk 0:00:17]} 73. Bc1 {[%clk 0:01:01.9]} 73... Kg8 {[%clk
0:00:17.2]} 74. Kb2 {[%clk 0:01:02.4]} 74... Kh7 {[%clk 0:00:17.4]} 75. Bd2
{[%clk 0:01:03.1]} 75... Kg8 {[%clk 0:00:17.7]} 76. Ka2 {[%clk 0:01:03.8]} 76...
Kh7 {[%clk 0:00:17.8]} 1/2-1/2

[Event "Late-Titled-Tuesday-Blitz-February-13-2024"]
[Site "Chess.com"]
[Date "2024.02.13"]
[Round "3"]
[White "Szparu"]
[Black "dropstoneDP"]
[Result "0-1"]
[WhiteElo "2786"]
[BlackElo "3051"]
[TimeControl "180+1"]
[EndTime "14:28:35 PST"]
[Termination "dropstoneDP won by checkmate"]

1. e4 {[%clk 0:03:00.9]} 1... e5 {[%clk 0:02:59.5]} 2. Nf3 {[%clk 0:03:01]} 2...
Nf6 {[%clk 0:02:59.7]} 3. Nc3 {[%clk 0:03:00.5]} 3... Nc6 {[%clk 0:02:59.6]} 4.
Bb5 {[%clk 0:03:00.5]} 4... Nd4 {[%clk 0:02:59.3]} 5. O-O {[%clk 0:03:00.5]}
5... c6 {[%clk 0:02:58.8]} 6. Bd3 {[%clk 0:03:00]} 6... Nxf3+ {[%clk 0:02:53.1]}
7. Qxf3 {[%clk 0:02:59]} 7... d6 {[%clk 0:02:54]} 8. Be2 {[%clk 0:02:58.6]} 8...
g6 {[%clk 0:02:52.3]} 9. Qg3 {[%clk 0:02:55.5]} 9... h5 {[%clk 0:02:51.3]} 10.
f4 {[%clk 0:02:50.9]} 10... Qb6+ {[%clk 0:02:43.2]} 11. Kh1 {[%clk 0:02:45.3]}
11... h4 {[%clk 0:02:38.3]} 12. Qf3 {[%clk 0:02:19]} 12... Nh5 {[%clk
0:02:30.6]} 13. d4 {[%clk 0:01:29.1]} 13... exd4 {[%clk 0:02:20.6]} 14. Na4
{[%clk 0:01:29.1]} 14... Qa5 {[%clk 0:02:14.5]} 15. b3 {[%clk 0:01:27.8]} 15...
Bg7 {[%clk 0:02:10.2]} 16. Bd3 {[%clk 0:01:23.7]} 16... Bd7 {[%clk 0:01:45.9]}
17. Nb2 {[%clk 0:01:24]} 17... Qc7 {[%clk 0:01:18.1]} 18. a4 {[%clk 0:01:20.5]}
18... O-O-O {[%clk 0:01:15.2]} 19. Bd2 {[%clk 0:01:16.3]} 19... f5 {[%clk
0:01:09.1]} 20. exf5 {[%clk 0:01:10]} 20... Bxf5 {[%clk 0:01:07.2]} 21. Rae1
{[%clk 0:01:00.4]} 21... Qd7 {[%clk 0:00:56.6]} 22. Kg1 {[%clk 0:00:59.5]} 22...
d5 {[%clk 0:00:49.3]} 23. a5 {[%clk 0:00:57]} 23... Rhe8 {[%clk 0:00:40.2]} 24.
Bxf5 {[%clk 0:00:51.3]} 24... Qxf5 {[%clk 0:00:41.1]} 25. Nd3 {[%clk 0:00:51.6]}
25... Bf8 {[%clk 0:00:36.2]} 26. Re5 {[%clk 0:00:30.5]} 26... Rxe5 {[%clk
0:00:35.7]} 27. fxe5 {[%clk 0:00:30.6]} 27... Qxf3 {[%clk 0:00:34.9]} 28. Rxf3
{[%clk 0:00:31.5]} 28... Ng7 {[%clk 0:00:25.8]} 29. Nf4 {[%clk 0:00:21.2]} 29...
Re8 {[%clk 0:00:18.9]} 30. Nxg6 {[%clk 0:00:21.2]} 30... Ne6 {[%clk 0:00:16.2]}
31. Nxh4 {[%clk 0:00:17.1]} 31... c5 {[%clk 0:00:13.9]} 32. Ng6 {[%clk
0:00:16.5]} 32... Bg7 {[%clk 0:00:14.2]} 33. Rf7 {[%clk 0:00:15.9]} 33... c4
{[%clk 0:00:13.2]} 34. Ne7+ {[%clk 0:00:15.1]} 34... Kb8 {[%clk 0:00:09.8]} 35.
Nxd5 {[%clk 0:00:14]} 35... c3 {[%clk 0:00:08.5]} 36. Nxc3 {[%clk 0:00:02.9]}
36... dxc3 {[%clk 0:00:07.8]} 37. Bxc3 {[%clk 0:00:03.8]} 37... Rc8 {[%clk
0:00:07.5]} 38. Bb4 {[%clk 0:00:04.3]} 38... Bxe5 {[%clk 0:00:06.8]} 39. c4
{[%clk 0:00:04.6]} 39... Rd8 {[%clk 0:00:05]} 40. g3 {[%clk 0:00:03.9]} 40...
Rd1+ {[%clk 0:00:04.4]} 41. Kg2 {[%clk 0:00:03.9]} 41... Bd4 {[%clk 0:00:02]}
42. Re7 {[%clk 0:00:03.9]} 42... Ng5 {[%clk 0:00:02.3]} 43. Bd6+ {[%clk
0:00:03.4]} 43... Kc8 {[%clk 0:00:02.7]} 44. Rc7+ {[%clk 0:00:03.8]} 44... Kd8
{[%clk 0:00:02.9]} 45. h4 {[%clk 0:00:02.4]} 45... Rd2+ {[%clk 0:00:03.3]} 46.
Kf1 {[%clk 0:00:02.2]} 46... Nf3 {[%clk 0:00:03.9]} 47. Rxb7 {[%clk 0:00:01.5]}
47... Rf2# {[%clk 0:00:04.4]} 0-1

[Event "Late-Titled-Tuesday-Blitz-February-13-2024"]
[Site "Chess.com"]
[Date "2024.02.13"]
[Round "3"]
[White "ImportedItalianMaple"]
[Black "kibromNNN"]
[Result "1-0"]
[WhiteElo "2529"]
[BlackElo "1785"]
[TimeControl "180+1"]
[EndTime "14:28:35 PST"]
[Termination "ImportedItalianMaple won on time"]

1. Nf3 {[%clk 0:02:54.3]} 1... Nf6 {[%clk 0:02:59.6]} 2. g3 {[%clk 0:02:54.7]}
2... g6 {[%clk 0:02:56.6]} 3. Bg2 {[%clk 0:02:54.6]} 3... Bg7 {[%clk 0:02:56]}
4. O-O {[%clk 0:02:55.5]} 4... O-O {[%clk 0:02:54.9]} 5. d4 {[%clk 0:02:55.9]}
5... d6 {[%clk 0:02:54.9]} 6. c4 {[%clk 0:02:55.1]} 6... a6 {[%clk 0:02:49.5]}
7. Nc3 {[%clk 0:02:53.1]} 7... Nc6 {[%clk 0:02:48.4]} 8. b3 {[%clk 0:02:52]}
8... Rb8 {[%clk 0:02:46]} 9. d5 {[%clk 0:02:50.7]} 9... Na5 {[%clk 0:02:43.3]}
10. Bd2 {[%clk 0:02:43.9]} 10... c5 {[%clk 0:02:38.4]} 11. a4 {[%clk 0:02:33.3]}
11... b5 {[%clk 0:02:32.9]} 12. axb5 {[%clk 0:02:29.5]} 12... axb5 {[%clk
0:02:31.9]} 13. Nxb5 {[%clk 0:02:29.7]} 13... Nb7 {[%clk 0:02:26.7]} 14. Ra7
{[%clk 0:02:26.5]} 14... Qb6 {[%clk 0:02:22.2]} 15. Qe1 {[%clk 0:02:06.1]} 15...
Ne4 {[%clk 0:02:17.4]} 16. Ba5 {[%clk 0:02:04.2]} 16... Nxa5 {[%clk 0:02:15.5]}
17. Qxa5 {[%clk 0:02:04.7]} 17... Bf6 {[%clk 0:01:54.6]} 18. Qxb6 {[%clk
0:02:00.8]} 18... Rxb6 {[%clk 0:01:53]} 19. Nfd4 {[%clk 0:01:38.3]} 19... Nxg3
{[%clk 0:01:41]} 20. hxg3 {[%clk 0:01:29.2]} 20... cxd4 {[%clk 0:01:39.8]} 21.
Rd1 {[%clk 0:01:23.5]} 21... Bg4 {[%clk 0:01:19.5]} 22. Bf3 {[%clk 0:01:14.7]}
22... Bf5 {[%clk 0:01:13.3]} 23. Nxd4 {[%clk 0:01:07.5]} 23... Bxd4 {[%clk
0:01:10]} 24. Rxd4 {[%clk 0:01:08.4]} 24... Re8 {[%clk 0:00:57.7]} 25. e4 {[%clk
0:01:06.6]} 25... Bh3 {[%clk 0:00:55]} 26. Kh2 {[%clk 0:00:59.8]} 26... Bc8
{[%clk 0:00:52.8]} 27. Bd1 {[%clk 0:00:55.3]} 27... Kf8 {[%clk 0:00:47.8]} 28.
Rd2 {[%clk 0:00:54.4]} 28... Rd8 {[%clk 0:00:35.8]} 29. Rda2 {[%clk 0:00:48.5]}
29... Bd7 {[%clk 0:00:31]} 30. Ra8 {[%clk 0:00:43.5]} 30... Rbb8 {[%clk
0:00:28.8]} 31. Rxb8 {[%clk 0:00:43.3]} 31... Rxb8 {[%clk 0:00:29.5]} 32. Ra7
{[%clk 0:00:42.1]} 32... Ke8 {[%clk 0:00:28.4]} 33. Kg2 {[%clk 0:00:42.1]} 33...
Kd8 {[%clk 0:00:26.8]} 34. f4 {[%clk 0:00:40.2]} 34... h5 {[%clk 0:00:25.2]} 35.
Kf2 {[%clk 0:00:39.6]} 35... Rc8 {[%clk 0:00:19.3]} 36. Ke3 {[%clk 0:00:39.4]}
36... Rb8 {[%clk 0:00:18.6]} 37. Kd4 {[%clk 0:00:39.7]} 37... Kc8 {[%clk
0:00:19.4]} 38. e5 {[%clk 0:00:39.1]} 38... Rb7 {[%clk 0:00:18.2]} 39. Rxb7
{[%clk 0:00:33]} 39... Kxb7 {[%clk 0:00:17.9]} 40. b4 {[%clk 0:00:32.8]} 40...
Kb6 {[%clk 0:00:16.7]} 41. c5+ {[%clk 0:00:32]} 41... dxc5+ {[%clk 0:00:13.3]}
42. bxc5+ {[%clk 0:00:32.9]} 42... Kc7 {[%clk 0:00:11.9]} 43. c6 {[%clk
0:00:31.3]} 43... Bh3 {[%clk 0:00:11]} 44. Kc5 {[%clk 0:00:30.9]} 44... Bg2
{[%clk 0:00:09.8]} 45. d6+ {[%clk 0:00:31.3]} 45... exd6+ {[%clk 0:00:08.3]} 46.
exd6+ {[%clk 0:00:32]} 46... Kd8 {[%clk 0:00:06.6]} 47. Bb3 {[%clk 0:00:31.9]}
47... f6 {[%clk 0:00:04.8]} 48. Bf7 {[%clk 0:00:32.3]} 48... g5 {[%clk
0:00:02.2]} 49. Bxh5 {[%clk 0:00:32.7]} 49... gxf4 {[%clk 0:00:01.4]} 50. gxf4
{[%clk 0:00:33.6]} 1-0

[Event "Late-Titled-Tuesday-Blitz-February-13-2024"]
[Site "Chess.com"]
[Date "2024.02.13"]
[Round "3"]
[White "Flaccidmoves"]
[Black "biostatistician"]
[Result "1-0"]
[WhiteElo "2427"]
[BlackElo "2584"]
[TimeControl "180+1"]
[EndTime "14:28:37 PST"]
[Termination "Flaccidmoves won on time"]

1. d4 {[%clk 0:03:00.9]} 1... Nf6 {[%clk 0:02:58.8]} 2. c4 {[%clk 0:03:01.5]}
2... g6 {[%clk 0:02:59]} 3. Nc3 {[%clk 0:03:02.1]} 3... Bg7 {[%clk 0:02:58.9]}
4. e4 {[%clk 0:03:02.6]} 4... d6 {[%clk 0:02:59.2]} 5. Nf3 {[%clk 0:03:03.3]}
5... O-O {[%clk 0:02:59.6]} 6. h3 {[%clk 0:03:03.7]} 6... c5 {[%clk 0:02:59.3]}
7. d5 {[%clk 0:03:03.3]} 7... e6 {[%clk 0:02:59.7]} 8. Bd3 {[%clk 0:03:02.6]}
8... exd5 {[%clk 0:02:59.9]} 9. exd5 {[%clk 0:03:03.1]} 9... Re8+ {[%clk
0:03:00.3]} 10. Be3 {[%clk 0:03:03.7]} 10... Bh6 {[%clk 0:03:00.6]} 11. Qd2
{[%clk 0:03:02.8]} 11... Qe7 {[%clk 0:02:54.9]} 12. Nd1 {[%clk 0:02:55.1]} 12...
Ne4 {[%clk 0:02:51.9]} 13. Qc2 {[%clk 0:02:51.3]} 13... Nxf2 {[%clk 0:02:33.8]}
14. Qxf2 {[%clk 0:02:44.8]} 14... Bxe3 {[%clk 0:02:33.2]} 15. Nxe3 {[%clk
0:02:45.4]} 15... Qxe3+ {[%clk 0:02:34.1]} 16. Qxe3 {[%clk 0:02:45.9]} 16...
Rxe3+ {[%clk 0:02:34.4]} 17. Kd2 {[%clk 0:02:46.6]} 17... Re7 {[%clk 0:02:31.3]}
18. Rae1 {[%clk 0:02:47]} 18... Kf8 {[%clk 0:02:23.3]} 19. Ng5 {[%clk
0:02:42.3]} 19... Rxe1 {[%clk 0:02:16.9]} 20. Rxe1 {[%clk 0:02:43.2]} 20... h6
{[%clk 0:02:17.3]} 21. Ne4 {[%clk 0:02:42.8]} 21... Nd7 {[%clk 0:02:11.4]} 22.
Nxd6 {[%clk 0:02:42]} 22... Nf6 {[%clk 0:02:11.7]} 23. Rf1 {[%clk 0:02:32.6]}
23... Ke7 {[%clk 0:01:59.7]} 24. Nb5 {[%clk 0:02:26.6]} 24... Nd7 {[%clk
0:01:29.4]} 25. d6+ {[%clk 0:02:22]} 25... Kf8 {[%clk 0:01:26.5]} 26. Nc7 {[%clk
0:02:06.1]} 26... Rb8 {[%clk 0:01:25.7]} 27. Re1 {[%clk 0:01:38.1]} 27... Nf6
{[%clk 0:01:23.6]} 28. Re7 {[%clk 0:01:37.2]} 28... Bd7 {[%clk 0:01:11.4]} 29.
Nd5 {[%clk 0:01:32.6]} 29... Nxd5 {[%clk 0:01:08.7]} 30. Rxd7 {[%clk 0:01:28.5]}
30... Nf6 {[%clk 0:01:01.5]} 31. Rc7 {[%clk 0:01:24.2]} 31... Ne8 {[%clk
0:00:58.1]} 32. Rd7 {[%clk 0:01:22.5]} 32... Nf6 {[%clk 0:00:48.8]} 33. Re7
{[%clk 0:01:21.3]} 33... a6 {[%clk 0:00:45.3]} 34. Rc7 {[%clk 0:01:11.8]} 34...
Ne8 {[%clk 0:00:42.4]} 35. Rxc5 {[%clk 0:01:11.2]} 35... Nxd6 {[%clk 0:00:42.7]}
36. Rd5 {[%clk 0:01:11.3]} 36... Ke7 {[%clk 0:00:42.1]} 37. c5 {[%clk 0:01:11]}
37... Ne8 {[%clk 0:00:40.1]} 38. Be4 {[%clk 0:01:09]} 38... Nf6 {[%clk 0:00:34]}
39. Rd4 {[%clk 0:01:06.7]} 39... b6 {[%clk 0:00:19.3]} 40. cxb6 {[%clk 0:00:58]}
40... Rxb6 {[%clk 0:00:18.7]} 41. b3 {[%clk 0:00:58.1]} 41... h5 {[%clk
0:00:17.1]} 42. Bf3 {[%clk 0:00:57.2]} 42... Nd7 {[%clk 0:00:15.7]} 43. Kc3
{[%clk 0:00:53.5]} 43... f5 {[%clk 0:00:15.8]} 44. b4 {[%clk 0:00:51.9]} 44...
g5 {[%clk 0:00:14.7]} 45. Bxh5 {[%clk 0:00:50.4]} 45... Nf6 {[%clk 0:00:11.5]}
46. Bf3 {[%clk 0:00:49.7]} 46... Ke6 {[%clk 0:00:10.2]} 47. a4 {[%clk
0:00:48.7]} 47... Ke5 {[%clk 0:00:10.2]} 48. Rc4 {[%clk 0:00:48.1]} 48... Ne4+
{[%clk 0:00:09]} 49. Kc2 {[%clk 0:00:40]} 49... Kf4 {[%clk 0:00:07.9]} 50. Be2
{[%clk 0:00:31.2]} 50... Ke3 {[%clk 0:00:07.8]} 51. Bd3 {[%clk 0:00:29]} 51...
Nd6 {[%clk 0:00:04.8]} 52. Rc3 {[%clk 0:00:22.9]} 52... Kd4 {[%clk 0:00:01.9]}
53. Rb3 {[%clk 0:00:21.6]} 1-0

[Event "Late-Titled-Tuesday-Blitz-February-13-2024"]
[Site "Chess.com"]
[Date "2024.02.13"]
[Round "3"]
[White "ozates"]
[Black "mitrabhaa"]
[Result "1/2-1/2"]
[WhiteElo "2584"]
[BlackElo "2890"]
[TimeControl "180+1"]
[EndTime "14:28:40 PST"]
[Termination "Game drawn - insufficient material"]

1. c4 {[%clk 0:03:00.9]} 1... Nf6 {[%clk 0:02:40.7]} 2. g3 {[%clk 0:03:00.4]}
2... c6 {[%clk 0:02:39.4]} 3. Bg2 {[%clk 0:02:57.6]} 3... d5 {[%clk 0:02:40.3]}
4. Qc2 {[%clk 0:02:56.6]} 4... g6 {[%clk 0:02:39.5]} 5. Nf3 {[%clk 0:02:57.1]}
5... Bg7 {[%clk 0:02:39.5]} 6. O-O {[%clk 0:02:57.7]} 6... O-O {[%clk
0:02:40.1]} 7. d3 {[%clk 0:02:57.1]} 7... a5 {[%clk 0:02:37.7]} 8. e4 {[%clk
0:02:56.5]} 8... dxe4 {[%clk 0:02:36.4]} 9. dxe4 {[%clk 0:02:57]} 9... Bg4
{[%clk 0:02:34.9]} 10. Nc3 {[%clk 0:02:55.2]} 10... Bxf3 {[%clk 0:02:33.8]} 11.
Bxf3 {[%clk 0:02:55.8]} 11... e5 {[%clk 0:02:33.5]} 12. b3 {[%clk 0:02:55]}
12... Qc7 {[%clk 0:02:32.5]} 13. Ba3 {[%clk 0:02:54.8]} 13... Rd8 {[%clk
0:02:32.7]} 14. Rad1 {[%clk 0:02:55.5]} 14... Na6 {[%clk 0:02:33]} 15. Rxd8+
{[%clk 0:02:49.1]} 15... Rxd8 {[%clk 0:02:33.9]} 16. Rd1 {[%clk 0:02:49.5]}
16... Bf8 {[%clk 0:02:34]} 17. Bxf8 {[%clk 0:02:45.8]} 17... Kxf8 {[%clk
0:02:33.5]} 18. Rxd8+ {[%clk 0:02:38.7]} 18... Qxd8 {[%clk 0:02:33.1]} 19. Qd1
{[%clk 0:02:39.4]} 19... Qe7 {[%clk 0:02:30.3]} 20. Na4 {[%clk 0:02:35]} 20...
Kg7 {[%clk 0:02:29.1]} 21. Qc1 {[%clk 0:02:24.8]} 21... Nc5 {[%clk 0:02:11.2]}
22. Qa3 {[%clk 0:01:53.8]} 22... Nfd7 {[%clk 0:02:08.9]} 23. Kf1 {[%clk
0:01:47.8]} 23... Kf8 {[%clk 0:01:57.5]} 24. Nxc5 {[%clk 0:01:42.6]} 24... Qxc5
{[%clk 0:01:56.4]} 25. Qxc5+ {[%clk 0:01:43.1]} 25... Nxc5 {[%clk 0:01:57.3]}
26. Ke2 {[%clk 0:01:42]} 26... Ke7 {[%clk 0:01:51.4]} 27. Ke3 {[%clk 0:01:42.3]}
27... Kd6 {[%clk 0:01:47.8]} 28. Bd1 {[%clk 0:01:42.2]} 28... Ne6 {[%clk
0:01:47.4]} 29. a3 {[%clk 0:01:39.4]} 29... Kc5 {[%clk 0:01:47.4]} 30. Kd3
{[%clk 0:01:38.7]} 30... b5 {[%clk 0:01:45.8]} 31. cxb5 {[%clk 0:01:36.9]} 31...
cxb5 {[%clk 0:01:46.7]} 32. f4 {[%clk 0:01:36.3]} 32... exf4 {[%clk 0:01:46.2]}
33. Bg4 {[%clk 0:01:25.4]} 33... fxg3 {[%clk 0:01:44.3]} 34. hxg3 {[%clk
0:01:26.3]} 34... h5 {[%clk 0:01:44.3]} 35. Bh3 {[%clk 0:01:26.6]} 35... g5
{[%clk 0:01:40.8]} 36. Bf5 {[%clk 0:01:25.7]} 36... h4 {[%clk 0:01:41.1]} 37.
gxh4 {[%clk 0:01:26.1]} 37... gxh4 {[%clk 0:01:42]} 38. Ke3 {[%clk 0:01:21.1]}
38... Nd4 {[%clk 0:01:41.8]} 39. b4+ {[%clk 0:01:21.4]} 39... axb4 {[%clk
0:01:41.9]} 40. axb4+ {[%clk 0:01:22.3]} 40... Kc4 {[%clk 0:01:42.5]} 41. Bd7
{[%clk 0:01:18.2]} 41... Nc2+ {[%clk 0:01:40.6]} 42. Kf4 {[%clk 0:01:17.7]}
42... Nxb4 {[%clk 0:01:40.9]} 43. Kg4 {[%clk 0:01:14.4]} 43... Nd3 {[%clk
0:01:41.4]} 44. Kxh4 {[%clk 0:01:05.3]} 44... b4 {[%clk 0:01:41.5]} 45. Be8
{[%clk 0:00:56.6]} 45... f6 {[%clk 0:01:41]} 46. Kg4 {[%clk 0:00:52.3]} 46...
Ne5+ {[%clk 0:01:16.3]} 47. Kf5 {[%clk 0:00:51.3]} 47... b3 {[%clk 0:01:15.4]}
48. Ba4 {[%clk 0:00:51.9]} 48... b2 {[%clk 0:01:15.3]} 49. Bc2 {[%clk
0:00:52.1]} 49... Kc3 {[%clk 0:00:33.9]} 50. Bb1 {[%clk 0:00:52.1]} 50... Kd2
{[%clk 0:00:26.2]} 51. Kxf6 {[%clk 0:00:49.5]} 51... Nd7+ {[%clk 0:00:25.8]} 52.
Kf5 {[%clk 0:00:26.8]} 52... Kc1 {[%clk 0:00:20.4]} 53. Ba2 {[%clk 0:00:27.1]}
53... Nc5 {[%clk 0:00:15.4]} 54. e5 {[%clk 0:00:26.5]} 54... Nd3 {[%clk
0:00:16]} 55. e6 {[%clk 0:00:17.6]} 55... Nb4 {[%clk 0:00:16.2]} 56. e7 {[%clk
0:00:15.7]} 56... Nxa2 {[%clk 0:00:16.6]} 57. e8=Q {[%clk 0:00:16.6]} 57...
b1=Q+ {[%clk 0:00:16.8]} 58. Qe4 {[%clk 0:00:17.2]} 58... Kb2 {[%clk 0:00:17.7]}
59. Qxb1+ {[%clk 0:00:17.2]} 59... Kxb1 {[%clk 0:00:17.8]} 1/2-1/2